[Event "2026 Biel Blitz Open"]
[Site "Biel, CH"]
[Date "2026.07.19"]
[Round "12"]
[White "Tureshbayev, Anuar"]
[Black "Huang,Hsuan-Chen"]
[Result "1-0"]
[Board "14"]
[TimeControl "180+2"]
[WhiteFideId "651081709"]
[BlackFideId "16303121"]
[WhiteElo "2328"]
[BlackElo "1833"]
[WhiteTitle "FM"]
[WhiteClock "0:00:12"]
[BlackClock "0:00:11"]
[Variant "Standard"]
[EndDate "2026.07.19"]
[EndTime "16:00:50"]

1. e4 {[%clk 0:03:02]}  c6 {[%clk 0:03:03]} 2. d4 {[%clk 0:03:03]}  d5 {[%clk 0:03:05]} 3. Nc3 {[%clk 0:03:02]}  dxe4 {[%clk 0:03:05]}
4. Nxe4 {[%clk 0:03:03]}  Nf6 {[%clk 0:03:06]} 5. Nxf6+ {[%clk 0:03:04]}  exf6 {[%clk 0:03:07]} 6. c3 {[%clk 0:03:05]}  Bd6 {[%clk 0:03:08]}
7. Bd3 {[%clk 0:03:06]}  Nd7 {[%clk 0:03:08]} 8. Ne2 {[%clk 0:03:03]}  Nf8 {[%clk 0:03:07]} 9. O-O {[%clk 0:02:45]}  Ng6 {[%clk 0:03:07]}
10. f4 {[%clk 0:02:39]}  Bd7 {[%clk 0:02:41]} 11. f5 {[%clk 0:02:36]}  Ne7 {[%clk 0:02:42]} 12. Bf4 {[%clk 0:02:08]}  Qc7 {[%clk 0:02:43]}
13. Qd2 {[%clk 0:01:54]}  O-O-O {[%clk 0:02:31]} 14. Bxd6 {[%clk 0:01:22]}  Qxd6 {[%clk 0:02:32]} 15. Qf4 {[%clk 0:01:23]}  Qxf4 {[%clk 0:02:22]}
16. Nxf4 {[%clk 0:01:24]}  Bxf5 {[%clk 0:02:12]} 17. Bxf5+ {[%clk 0:00:51]}  Nxf5 {[%clk 0:02:12]} 18. Nh5 {[%clk 0:00:53]}  g6 {[%clk 0:01:27]}
19. Nxf6 {[%clk 0:00:53]}  Rd6 {[%clk 0:01:21]} 20. Ne4 {[%clk 0:00:52]}  Re6 {[%clk 0:01:21]} 21. Ng5 {[%clk 0:00:51]}  Re7 {[%clk 0:01:18]}
22. g4 {[%clk 0:00:42]}  f6 {[%clk 0:01:12]} 23. gxf5 {[%clk 0:00:31]}  fxg5 {[%clk 0:01:12]} 24. fxg6 {[%clk 0:00:28]}  hxg6 {[%clk 0:01:13]}
25. Rae1 {[%clk 0:00:29]}  Reh7 {[%clk 0:01:04]} 26. Re2 {[%clk 0:00:29]}  Kc7 {[%clk 0:00:51]} 27. Rf6 {[%clk 0:00:30]}  Rg8 {[%clk 0:00:48]}
28. Rg2 {[%clk 0:00:27]}  Rh5 {[%clk 0:00:41]} 29. Rf7+ {[%clk 0:00:26]}  Kb6 {[%clk 0:00:43]} 30. Re2 {[%clk 0:00:27]}  Rh4 {[%clk 0:00:35]}
31. Ree7 {[%clk 0:00:27]}  Rb8 {[%clk 0:00:36]} 32. Rf6 {[%clk 0:00:20]}  Rbh8 {[%clk 0:00:33]} 33. Rff7 {[%clk 0:00:20]}  Rb8 {[%clk 0:00:34]}
34. Kg2 {[%clk 0:00:21]}  a5 {[%clk 0:00:23]} 35. h3 {[%clk 0:00:22]}  g4 {[%clk 0:00:23]} 36. hxg4 {[%clk 0:00:19]}  Rxg4+ {[%clk 0:00:24]}
37. Kf3 {[%clk 0:00:18]}  Rh4 {[%clk 0:00:25]} 38. Kg3 {[%clk 0:00:17]}  Rh5 {[%clk 0:00:25]} 39. Re5 {[%clk 0:00:16]}  Rxe5 {[%clk 0:00:17]}
40. dxe5 {[%clk 0:00:17]}  Kc5 {[%clk 0:00:19]} 41. Rd7 {[%clk 0:00:18]}  Re8 {[%clk 0:00:18]} 42. Kf4 {[%clk 0:00:19]}  Rf8+ {[%clk 0:00:20]}
43. Ke4 {[%clk 0:00:17]}  Rf1 {[%clk 0:00:13]} 44. Rxb7 {[%clk 0:00:17]}  g5 {[%clk 0:00:14]} 45. e6 {[%clk 0:00:16]}  Kd6 {[%clk 0:00:15]}
46. e7 {[%clk 0:00:16]}  Re1+ {[%clk 0:00:16]} 47. Kf5 {[%clk 0:00:18]}  Re5+ {[%clk 0:00:15]} 48. Kg4 {[%clk 0:00:18]}  a4 {[%clk 0:00:12]}
49. Ra7 {[%clk 0:00:18]}  a3 {[%clk 0:00:11]} 50. b4 {[%clk 0:00:14]}  Re3 {[%clk 0:00:06]} 51. Kxg5 {[%clk 0:00:12]}  Rg3+ {[%clk 0:00:07]}
52. Kf4 {[%clk 0:00:13]}  Rg8 {[%clk 0:00:08]} 53. Rxa3 {[%clk 0:00:14]}  Kxe7 {[%clk 0:00:09]} 54. Ra6 {[%clk 0:00:14]}  Kd6 {[%clk 0:00:10]}
55. b5 {[%clk 0:00:16]}  Rf8+ {[%clk 0:00:10]} 56. Ke3 {[%clk 0:00:17]}  Kc5 {[%clk 0:00:10]} 57. bxc6 {[%clk 0:00:14]}  Re8+ {[%clk 0:00:10]}
58. Kd3 {[%clk 0:00:14]}  Re7 {[%clk 0:00:10]} 59. a4 {[%clk 0:00:15]}  Re8 {[%clk 0:00:07]} 60. c7 {[%clk 0:00:15]}  Rc8 {[%clk 0:00:07]}
61. Ra5+ {[%clk 0:00:13]}  Kb6 {[%clk 0:00:07]} 62. Rb5+ {[%clk 0:00:15]}  Kc6 {[%clk 0:00:09]} 63. Rb4 {[%clk 0:00:16]}  Kc5 {[%clk 0:00:07]}
64. Rc4+ {[%clk 0:00:16]}  Kb6 {[%clk 0:00:08]} 65. Kc2 {[%clk 0:00:16]}  Ka5 {[%clk 0:00:09]} 66. Kb3 {[%clk 0:00:17]}  Kb6 {[%clk 0:00:10]}
67. Kb4 {[%clk 0:00:18]}  Ka6 {[%clk 0:00:11]} 68. a5 {[%clk 0:00:18]}  Kb7 {[%clk 0:00:12]} 69. Kb5 {[%clk 0:00:18]}  Ka7 {[%clk 0:00:14]}
70. Rc6 {[%clk 0:00:18]}  Kb7 {[%clk 0:00:15]} 71. c4 {[%clk 0:00:16]}  Ka7 {[%clk 0:00:16]} 72. c5 {[%clk 0:00:17]}  Kb7 {[%clk 0:00:17]}
73. Rb6+ {[%clk 0:00:13]}  Ka7 {[%clk 0:00:17]} 74. Kc6 {[%clk 0:00:12]}  Ka8 {[%clk 0:00:12]} 75. Rb8+ {[%clk 0:00:14]}  Ka7 {[%clk 0:00:11]}
76. Rxc8 {[%clk 0:00:14]}  Ka6 {[%clk 0:00:11]} 77. Ra8# {[%clk 0:00:12]} 1-0

[Event "2026 Biel Blitz Open"]
[Site "Biel, CH"]
[Date "2026.07.19"]
[Round "12"]
[White "Coban, Ege"]
[Black "Omar, Noaman"]
[Result "0-1"]
[Board "15"]
[TimeControl "180+2"]
[WhiteFideId "26320304"]
[BlackFideId "9300244"]
[WhiteElo "1936"]
[BlackElo "2274"]
[BlackTitle "IM"]
[WhiteClock "0:00:51"]
[BlackClock "0:00:17"]
[Variant "Standard"]
[EndDate "2026.07.19"]
[EndTime "15:58:12"]

1. e4 {[%clk 0:03:02]}  c6 {[%clk 0:03:02]} 2. d4 {[%clk 0:03:03]}  d5 {[%clk 0:03:03]} 3. e5 {[%clk 0:03:04]}  Bf5 {[%clk 0:03:04]}
4. h4 {[%clk 0:03:06]}  h5 {[%clk 0:03:04]} 5. Bd3 {[%clk 0:03:07]}  Bxd3 {[%clk 0:03:04]} 6. Qxd3 {[%clk 0:03:08]}  e6 {[%clk 0:03:04]}
7. Bg5 {[%clk 0:03:09]}  Be7 {[%clk 0:02:33]} 8. Nf3 {[%clk 0:03:10]}  Nh6 {[%clk 0:02:34]} 9. Nbd2 {[%clk 0:03:06]}  Nf5 {[%clk 0:02:34]}
10. g3 {[%clk 0:02:58]}  c5 {[%clk 0:01:59]} 11. c3 {[%clk 0:02:55]}  Qb6 {[%clk 0:01:43]} 12. O-O {[%clk 0:02:51]}  cxd4 {[%clk 0:01:35]}
13. cxd4 {[%clk 0:02:51]}  Nc6 {[%clk 0:01:31]} 14. Bxe7 {[%clk 0:02:42]}  Ncxe7 {[%clk 0:01:22]} 15. Rfd1 {[%clk 0:02:42]}  Rc8 {[%clk 0:01:19]}
16. Nf1 {[%clk 0:02:42]}  O-O {[%clk 0:00:51]} 17. b3 {[%clk 0:02:36]}  Rc6 {[%clk 0:00:48]} 18. Rac1 {[%clk 0:02:26]}  Rfc8 {[%clk 0:00:49]}
19. Rxc6 {[%clk 0:02:27]}  Qxc6 {[%clk 0:00:48]} 20. Kg2 {[%clk 0:02:19]}  Qc2 {[%clk 0:00:47]} 21. Qd2 {[%clk 0:01:53]}  Rc3 {[%clk 0:00:21]}
22. Ne3 {[%clk 0:01:33]}  Nxe3+ {[%clk 0:00:18]} 23. fxe3 {[%clk 0:01:34]}  Qxd2+ {[%clk 0:00:17]} 24. Rxd2 {[%clk 0:01:35]}  Nf5 {[%clk 0:00:17]}
25. Kf2 {[%clk 0:01:33]}  Nxe3 {[%clk 0:00:16]} 26. Ne1 {[%clk 0:01:21]}  Nf5 {[%clk 0:00:14]} 27. Nf3 {[%clk 0:01:13]}  f6 {[%clk 0:00:16]}
28. Re2 {[%clk 0:01:10]}  Kf7 {[%clk 0:00:17]} 29. Rd2 {[%clk 0:01:06]}  b5 {[%clk 0:00:18]} 30. a4 {[%clk 0:00:55]}  b4 {[%clk 0:00:18]}
31. Rb2 {[%clk 0:00:55]}  Ke7 {[%clk 0:00:16]} 32. Rb1 {[%clk 0:00:54]}  Kd7 {[%clk 0:00:17]} 33. Rb2 {[%clk 0:00:56]}  a5 {[%clk 0:00:17]}
34. Kg2 {[%clk 0:00:49]}  Rd3 {[%clk 0:00:16]} 35. Rc2 {[%clk 0:00:45]}  Nxd4 {[%clk 0:00:17]} 36. Nxd4 {[%clk 0:00:44]}  Rxd4 {[%clk 0:00:18]}
37. exf6 {[%clk 0:00:45]}  gxf6 {[%clk 0:00:18]} 38. Rc5 {[%clk 0:00:47]}  Rd2+ {[%clk 0:00:15]} 39. Kf1 {[%clk 0:00:46]}  Rd3 {[%clk 0:00:16]}
40. Rxa5 {[%clk 0:00:47]}  Rxg3 {[%clk 0:00:16]} 41. Ra7+ {[%clk 0:00:48]}  Kd6 {[%clk 0:00:17]} 42. Rh7 {[%clk 0:00:49]}  Rxb3 {[%clk 0:00:17]}
43. Rxh5 {[%clk 0:00:50]}  Ra3 {[%clk 0:00:18]} 44. Rh6 {[%clk 0:00:51]}  b3 {[%clk 0:00:17]} 0-1

[Event "2026 Biel Blitz Open"]
[Site "Biel, CH"]
[Date "2026.07.19"]
[Round "12"]
[White "Fernandes Barbosa Dos Santos, Gabriel"]
[Black "Xu, Chang(CQ)"]
[Result "1-0"]
[Board "16"]
[TimeControl "180+2"]
[WhiteFideId "1354388"]
[BlackFideId "8641757"]
[WhiteElo "2167"]
[BlackElo "2049"]
[WhiteTitle "CM"]
[WhiteClock "0:00:10"]
[BlackClock "0:00:21"]
[Variant "Standard"]
[EndDate "2026.07.19"]
[EndTime "15:58:27"]

1. e4 {[%clk 0:03:02]}  c5 {[%clk 0:03:03]} 2. Nf3 {[%clk 0:03:02]}  d6 {[%clk 0:03:04]} 3. d4 {[%clk 0:03:03]}  cxd4 {[%clk 0:03:04]}
4. Nxd4 {[%clk 0:03:03]}  Nf6 {[%clk 0:03:05]} 5. Nc3 {[%clk 0:03:03]}  a6 {[%clk 0:03:06]} 6. Bg5 {[%clk 0:02:59]}  e6 {[%clk 0:03:07]}
7. Qe2 {[%clk 0:02:59]}  Be7 {[%clk 0:03:03]} 8. h4 {[%clk 0:02:49]}  Qc7 {[%clk 0:03:00]} 9. O-O-O {[%clk 0:02:45]}  Nbd7 {[%clk 0:02:59]}
10. Kb1 {[%clk 0:02:30]}  b5 {[%clk 0:02:52]} 11. Bxf6 {[%clk 0:02:11]}  Nxf6 {[%clk 0:02:48]} 12. Qe3 {[%clk 0:01:40]}  Bb7 {[%clk 0:02:45]}
13. Bd3 {[%clk 0:01:39]}  O-O {[%clk 0:02:33]} 14. g4 {[%clk 0:01:34]}  Rac8 {[%clk 0:02:29]} 15. g5 {[%clk 0:01:30]}  Nd7 {[%clk 0:02:16]}
16. g6 {[%clk 0:01:31]}  hxg6 {[%clk 0:02:12]} 17. h5 {[%clk 0:01:30]}  g5 {[%clk 0:02:09]} 18. Rdg1 {[%clk 0:01:20]}  b4 {[%clk 0:02:07]}
19. Nce2 {[%clk 0:01:05]}  Qc5 {[%clk 0:01:49]} 20. Rh2 {[%clk 0:00:19]}  Rfe8 {[%clk 0:01:48]} 21. Rhg2 {[%clk 0:00:17]}  e5 {[%clk 0:01:47]}
22. Rxg5 {[%clk 0:00:12]}  Bf6 {[%clk 0:01:19]} 23. Rxg7+ {[%clk 0:00:13]}  Kf8 {[%clk 0:01:20]} 24. Nf5 {[%clk 0:00:05]}  Bxg7 {[%clk 0:01:15]}
25. Qg5 {[%clk 0:00:05]}  Re6 {[%clk 0:01:11]} 26. Qxg7+ {[%clk 0:00:06]}  Ke8 {[%clk 0:01:12]} 27. h6 {[%clk 0:00:05]}  b3 {[%clk 0:01:07]}
28. axb3 {[%clk 0:00:05]}  Nf8 {[%clk 0:01:05]} 29. h7 {[%clk 0:00:06]}  Nxh7 {[%clk 0:00:46]} 30. Qxh7 {[%clk 0:00:07]}  Rg6 {[%clk 0:00:18]}
31. Rxg6 {[%clk 0:00:07]}  fxg6 {[%clk 0:00:19]} 32. Qg8+ {[%clk 0:00:07]}  Kd7 {[%clk 0:00:20]} 33. Qf7+ {[%clk 0:00:07]}  Kc6 {[%clk 0:00:21]}
34. Ne7+ {[%clk 0:00:08]}  Kb6 {[%clk 0:00:22]} 35. Nxc8+ {[%clk 0:00:08]}  Bxc8 {[%clk 0:00:23]} 36. Qxg6 {[%clk 0:00:08]}  Kc7 {[%clk 0:00:23]}
37. Qf7+ {[%clk 0:00:07]}  Kb6 {[%clk 0:00:24]} 38. Nc3 {[%clk 0:00:08]}  Qxf2 {[%clk 0:00:22]} 39. Nd5+ {[%clk 0:00:09]}  Kc5 {[%clk 0:00:19]}
40. Qa7+ {[%clk 0:00:10]}  Kc6 {[%clk 0:00:21]} 41. Qxf2 {[%clk 0:00:10]} 1-0

[Event "2026 Biel Blitz Open"]
[Site "Biel, CH"]
[Date "2026.07.19"]
[Round "12"]
[White "Kelecevic, Nedeljko"]
[Black "Bajraktari, Perparim"]
[Result "1/2-1/2"]
[Board "17"]
[TimeControl "180+2"]
[WhiteFideId "14400537"]
[BlackFideId "1307711"]
[WhiteElo "2150"]
[BlackElo "2045"]
[WhiteTitle "IM"]
[WhiteClock "0:03:09"]
[BlackClock "0:03:03"]
[Variant "Standard"]
[EndDate "2026.07.19"]
[EndTime "15:52:02"]

1. d4 {[%clk 0:03:03]}  Nf6 {[%clk 0:03:03]} 2. c4 {[%clk 0:03:04]}  c5 {[%clk 0:03:04]} 3. d5 {[%clk 0:03:05]}  b5 {[%clk 0:03:05]}
4. cxb5 {[%clk 0:03:06]}  a6 {[%clk 0:03:07]} 5. bxa6 {[%clk 0:03:06]}  Bxa6 {[%clk 0:03:09]} 6. Nc3 {[%clk 0:03:07]}  g6 {[%clk 0:03:10]}
7. Nf3 {[%clk 0:03:07]}  Bg7 {[%clk 0:03:11]} 8. e4 {[%clk 0:03:08]}  Bxf1 {[%clk 0:03:10]} 9. Kxf1 {[%clk 0:03:08]}  d6 {[%clk 0:03:11]}
10. g3 {[%clk 0:03:09]}  Nbd7 {[%clk 0:03:13]} 11. h3 {[%clk 0:03:09]}  O-O {[%clk 0:03:13]} 12. Kg2 {[%clk 0:03:11]}  Rb8 {[%clk 0:03:03]}
13. Re1 {[%clk 0:03:09]}  Ra8 {[%clk 0:03:01]} 14. Rh1 {[%clk 0:03:10]} 1/2-1/2

[Event "2026 Biel Blitz Open"]
[Site "Biel, CH"]
[Date "2026.07.19"]
[Round "12"]
[White "Nguyen Thi Mai Hung"]
[Black "Ragavan, Samarth Rajesh"]
[Result "1/2-1/2"]
[Board "18"]
[TimeControl "180+2"]
[WhiteFideId "12401676"]
[BlackFideId "39918106"]
[WhiteElo "2039"]
[BlackElo "2101"]
[WhiteTitle "WGM"]
[WhiteClock "0:00:07"]
[BlackClock "0:00:28"]
[Variant "Standard"]
[EndDate "2026.07.19"]
[EndTime "16:03:48"]

1. d4 {[%clk 0:03:03]}  Nf6 {[%clk 0:03:03]} 2. Nf3 {[%clk 0:03:04]}  e6 {[%clk 0:03:04]} 3. Bf4 {[%clk 0:03:03]}  d5 {[%clk 0:03:03]}
4. e3 {[%clk 0:03:05]}  c5 {[%clk 0:03:04]} 5. c3 {[%clk 0:03:06]}  Nc6 {[%clk 0:03:03]} 6. Nbd2 {[%clk 0:03:07]}  Nh5 {[%clk 0:02:57]}
7. Bg5 {[%clk 0:03:08]}  f6 {[%clk 0:02:58]} 8. Ng1 {[%clk 0:02:56]}  g6 {[%clk 0:02:56]} 9. Bh4 {[%clk 0:02:55]}  cxd4 {[%clk 0:02:53]}
10. cxd4 {[%clk 0:02:53]}  Ng7 {[%clk 0:02:53]} 11. g4 {[%clk 0:02:23]}  Be7 {[%clk 0:02:51]} 12. Bg3 {[%clk 0:02:17]}  Bd7 {[%clk 0:02:44]}
13. h3 {[%clk 0:02:13]}  Rc8 {[%clk 0:02:41]} 14. a3 {[%clk 0:02:11]}  Kf7 {[%clk 0:02:32]} 15. Ne2 {[%clk 0:02:11]}  Na5 {[%clk 0:02:25]}
16. Nc3 {[%clk 0:02:08]}  Bc6 {[%clk 0:02:06]} 17. Bg2 {[%clk 0:01:51]}  Nc4 {[%clk 0:01:54]} 18. Nxc4 {[%clk 0:01:51]}  dxc4 {[%clk 0:01:56]}
19. d5 {[%clk 0:01:47]}  exd5 {[%clk 0:01:51]} 20. Bxd5+ {[%clk 0:01:19]}  Bxd5 {[%clk 0:01:52]} 21. Qxd5+ {[%clk 0:01:20]}  Qxd5 {[%clk 0:01:53]}
22. Nxd5 {[%clk 0:01:20]}  Bc5 {[%clk 0:01:49]} 23. Ke2 {[%clk 0:01:21]}  Rhd8 {[%clk 0:01:47]} 24. Rhd1 {[%clk 0:01:22]}  Ne6 {[%clk 0:01:42]}
25. Bh4 {[%clk 0:00:56]}  g5 {[%clk 0:01:36]} 26. Bg3 {[%clk 0:00:58]}  b5 {[%clk 0:01:33]} 27. Nc3 {[%clk 0:00:59]}  a6 {[%clk 0:01:31]}
28. Ne4 {[%clk 0:00:56]}  Be7 {[%clk 0:01:29]} 29. Bd6 {[%clk 0:00:44]}  Rc6 {[%clk 0:01:16]} 30. Bxe7 {[%clk 0:00:31]}  Kxe7 {[%clk 0:01:16]}
31. Rxd8 {[%clk 0:00:31]}  Nxd8 {[%clk 0:01:16]} 32. Rd1 {[%clk 0:00:32]}  Nf7 {[%clk 0:01:15]} 33. Rd5 {[%clk 0:00:32]}  Ne5 {[%clk 0:01:12]}
34. Nxg5 {[%clk 0:00:24]}  Nd3 {[%clk 0:01:14]} 35. Ne4 {[%clk 0:00:20]}  Nxb2 {[%clk 0:01:13]} 36. Nc3 {[%clk 0:00:16]}  Nd3 {[%clk 0:01:09]}
37. Rh5 {[%clk 0:00:17]}  Ke6 {[%clk 0:01:01]} 38. Rxh7 {[%clk 0:00:18]}  Nc1+ {[%clk 0:00:58]} 39. Kd2 {[%clk 0:00:18]}  Nb3+ {[%clk 0:00:59]}
40. Kc2 {[%clk 0:00:19]}  Rd6 {[%clk 0:00:58]} 41. Ne4 {[%clk 0:00:20]}  Rd3 {[%clk 0:00:56]} 42. Rh6 {[%clk 0:00:16]}  Ke5 {[%clk 0:00:56]}
43. f3 {[%clk 0:00:18]}  Rxe3 {[%clk 0:00:55]} 44. Rxf6 {[%clk 0:00:16]}  Re2+ {[%clk 0:00:53]} 45. Kc3 {[%clk 0:00:16]}  a5 {[%clk 0:00:44]}
46. Rf5+ {[%clk 0:00:17]}  Ke6 {[%clk 0:00:45]} 47. Rxb5 {[%clk 0:00:18]}  Re3+ {[%clk 0:00:45]} 48. Kxc4 {[%clk 0:00:18]}  a4 {[%clk 0:00:45]}
49. Nc3 {[%clk 0:00:12]}  Nd2+ {[%clk 0:00:44]} 50. Kd4 {[%clk 0:00:13]}  Rxf3 {[%clk 0:00:44]} 51. h4 {[%clk 0:00:10]}  Nb3+ {[%clk 0:00:42]}
52. Kc4 {[%clk 0:00:11]}  Nd2+ {[%clk 0:00:43]} 53. Kb4 {[%clk 0:00:12]}  Rf4+ {[%clk 0:00:41]} 54. Ka5 {[%clk 0:00:13]}  Nb3+ {[%clk 0:00:32]}
55. Ka6 {[%clk 0:00:15]}  Rxg4 {[%clk 0:00:32]} 56. h5 {[%clk 0:00:16]}  Kd6 {[%clk 0:00:28]} 57. Kb6 {[%clk 0:00:17]}  Nd2 {[%clk 0:00:24]}
58. Rb4 {[%clk 0:00:15]}  Rxb4+ {[%clk 0:00:22]} 59. axb4 {[%clk 0:00:16]}  Ke5 {[%clk 0:00:21]} 60. Nxa4 {[%clk 0:00:15]}  Kf5 {[%clk 0:00:22]}
61. b5 {[%clk 0:00:13]}  Nc4+ {[%clk 0:00:21]} 62. Kc5 {[%clk 0:00:14]}  Na5 {[%clk 0:00:23]} 63. Kb6 {[%clk 0:00:14]}  Nb3 {[%clk 0:00:23]}
64. Kc7 {[%clk 0:00:11]}  Na5 {[%clk 0:00:22]} 65. b6 {[%clk 0:00:11]}  Kg5 {[%clk 0:00:23]} 66. Nc5 {[%clk 0:00:11]}  Kxh5 {[%clk 0:00:24]}
67. Nb3 {[%clk 0:00:10]}  Nxb3 {[%clk 0:00:25]} 68. b7 {[%clk 0:00:12]}  Nc5 {[%clk 0:00:26]} 69. b8=Q {[%clk 0:00:08]}  Na6+ {[%clk 0:00:27]}
70. Kb7 {[%clk 0:00:11]}  Nxb8 {[%clk 0:00:28]} 71. Kxb8 {[%clk 0:00:07]} 1/2-1/2

[Event "2026 Biel Blitz Open"]
[Site "Biel, CH"]
[Date "2026.07.19"]
[Round "12"]
[White "Kolly, Jacques"]
[Black "Clausen, Martin"]
[Result "0-1"]
[Board "19"]
[TimeControl "180+2"]
[WhiteFideId "1302183"]
[BlackFideId "1314882"]
[WhiteElo "2203"]
[BlackElo "1956"]
[WhiteTitle "FM"]
[WhiteClock "0:00:09"]
[BlackClock "0:00:54"]
[Variant "Standard"]
[EndDate "2026.07.19"]
[EndTime "16:05:05"]

1. d4 {[%clk 0:03:03]}  Nf6 {[%clk 0:03:02]} 2. c4 {[%clk 0:03:04]}  c5 {[%clk 0:03:03]} 3. d5 {[%clk 0:03:05]}  b5 {[%clk 0:03:03]}
4. e4 {[%clk 0:03:06]}  Nxe4 {[%clk 0:03:03]} 5. Qf3 {[%clk 0:03:05]}  Nd6 {[%clk 0:03:04]} 6. cxb5 {[%clk 0:03:06]}  a6 {[%clk 0:02:47]}
7. Nc3 {[%clk 0:02:46]}  axb5 {[%clk 0:02:44]} 8. Bxb5 {[%clk 0:02:47]}  Nxb5 {[%clk 0:02:32]} 9. Nxb5 {[%clk 0:02:48]}  Qa5+ {[%clk 0:02:25]}
10. Nc3 {[%clk 0:02:49]}  g6 {[%clk 0:02:08]} 11. Nge2 {[%clk 0:02:51]}  Bg7 {[%clk 0:02:09]} 12. O-O {[%clk 0:02:51]}  O-O {[%clk 0:02:06]}
13. Bg5 {[%clk 0:02:44]}  Re8 {[%clk 0:01:52]} 14. Rfe1 {[%clk 0:02:37]}  d6 {[%clk 0:01:53]} 15. Ng3 {[%clk 0:02:18]}  Qd8 {[%clk 0:01:39]}
16. a3 {[%clk 0:01:53]}  Nd7 {[%clk 0:01:39]} 17. Nge4 {[%clk 0:01:36]}  Ne5 {[%clk 0:01:40]} 18. Qd1 {[%clk 0:01:23]}  Ba6 {[%clk 0:01:37]}
19. f4 {[%clk 0:01:12]}  Nc4 {[%clk 0:01:21]} 20. Qc1 {[%clk 0:01:01]}  Rb8 {[%clk 0:01:18]} 21. Rb1 {[%clk 0:01:02]}  Qd7 {[%clk 0:01:09]}
22. h3 {[%clk 0:00:51]}  Rb7 {[%clk 0:01:05]} 23. Ng3 {[%clk 0:00:49]}  Bd4+ {[%clk 0:00:56]} 24. Kh2 {[%clk 0:00:46]}  f6 {[%clk 0:00:58]}
25. Bh4 {[%clk 0:00:45]}  Reb8 {[%clk 0:00:54]} 26. f5 {[%clk 0:00:06]}  g5 {[%clk 0:00:54]} 27. Bxg5 {[%clk 0:00:07]}  fxg5 {[%clk 0:00:54]}
28. Qxg5+ {[%clk 0:00:09]}  Kh8 {[%clk 0:00:54]} 0-1

[Event "2026 Biel Blitz Open"]
[Site "Biel, CH"]
[Date "2026.07.19"]
[Round "12"]
[White "Vihaan Dumir"]
[Black "Liu, Bei"]
[Result "1-0"]
[Board "20"]
[TimeControl "180+2"]
[WhiteFideId "25901010"]
[BlackFideId "8603596"]
[WhiteElo "1965"]
[BlackElo "2170"]
[WhiteTitle "CM"]
[WhiteClock "0:00:02"]
[BlackClock "0:00:08"]
[Variant "Standard"]
[EndDate "2026.07.19"]
[EndTime "15:59:35"]

1. d4 {[%clk 0:03:04]}  d5 {[%clk 0:03:03]} 2. Bf4 {[%clk 0:03:04]}  Nf6 {[%clk 0:03:03]} 3. e3 {[%clk 0:03:06]}  e6 {[%clk 0:03:04]}
4. Nf3 {[%clk 0:03:07]}  Bd6 {[%clk 0:03:05]} 5. Ne5 {[%clk 0:03:08]}  O-O {[%clk 0:02:59]} 6. Bd3 {[%clk 0:03:08]}  c5 {[%clk 0:02:59]}
7. c3 {[%clk 0:03:10]}  b6 {[%clk 0:02:42]} 8. h4 {[%clk 0:03:05]}  Ba6 {[%clk 0:02:38]} 9. Bxa6 {[%clk 0:03:04]}  Nxa6 {[%clk 0:02:39]}
10. h5 {[%clk 0:03:05]}  Qc7 {[%clk 0:02:26]} 11. Qf3 {[%clk 0:03:01]}  Ne8 {[%clk 0:01:54]} 12. h6 {[%clk 0:02:50]}  g6 {[%clk 0:01:56]}
13. Nd2 {[%clk 0:02:39]}  f6 {[%clk 0:01:52]} 14. Nd3 {[%clk 0:02:37]}  c4 {[%clk 0:01:48]} 15. Nc1 {[%clk 0:02:37]}  b5 {[%clk 0:01:35]}
16. Ne2 {[%clk 0:02:38]}  b4 {[%clk 0:01:35]} 17. e4 {[%clk 0:02:35]}  Qf7 {[%clk 0:01:11]} 18. exd5 {[%clk 0:02:11]}  exd5 {[%clk 0:01:12]}
19. Nxc4 {[%clk 0:01:51]}  Bxf4 {[%clk 0:01:12]} 20. Nxf4 {[%clk 0:01:51]}  bxc3 {[%clk 0:00:54]} 21. bxc3 {[%clk 0:01:46]}  Rc8 {[%clk 0:00:52]}
22. Nd2 {[%clk 0:01:16]}  Nec7 {[%clk 0:00:44]} 23. Kf1 {[%clk 0:00:44]}  Nb5 {[%clk 0:00:30]} 24. Nxd5 {[%clk 0:00:33]}  Nac7 {[%clk 0:00:31]}
25. Nxc7 {[%clk 0:00:28]}  Rxc7 {[%clk 0:00:32]} 26. Ne4 {[%clk 0:00:23]}  f5 {[%clk 0:00:32]} 27. Nc5 {[%clk 0:00:20]}  Qc4+ {[%clk 0:00:31]}
28. Qe2 {[%clk 0:00:19]}  Qxe2+ {[%clk 0:00:30]} 29. Kxe2 {[%clk 0:00:20]}  Nxc3+ {[%clk 0:00:31]} 30. Kd3 {[%clk 0:00:21]}  Nd5 {[%clk 0:00:32]}
31. Ne6 {[%clk 0:00:19]}  Rc3+ {[%clk 0:00:33]} 32. Kd2 {[%clk 0:00:20]}  Rfc8 {[%clk 0:00:23]} 33. Rac1 {[%clk 0:00:20]}  Rxc1 {[%clk 0:00:09]}
34. Rxc1 {[%clk 0:00:21]}  Rxc1 {[%clk 0:00:09]} 35. Kxc1 {[%clk 0:00:22]}  Nb4 {[%clk 0:00:11]} 36. Kd2 {[%clk 0:00:05]}  Nxa2 {[%clk 0:00:11]}
37. d5 {[%clk 0:00:07]}  Kf7 {[%clk 0:00:04]} 38. Ng5+ {[%clk 0:00:08]}  Kg8 {[%clk 0:00:05]} 39. d6 {[%clk 0:00:09]}  Nb4 {[%clk 0:00:06]}
40. d7 {[%clk 0:00:10]}  Nc6 {[%clk 0:00:06]} 41. Ne6 {[%clk 0:00:11]}  Kf7 {[%clk 0:00:06]} 42. d8=Q {[%clk 0:00:12]}  Nxd8 {[%clk 0:00:07]}
43. Nxd8+ {[%clk 0:00:12]}  Kf6 {[%clk 0:00:08]} 44. f4 {[%clk 0:00:11]}  g5 {[%clk 0:00:08]} 45. Ke3 {[%clk 0:00:09]}  Kg6 {[%clk 0:00:07]}
46. Ne6 {[%clk 0:00:07]}  g4 {[%clk 0:00:04]} 47. Nd4 {[%clk 0:00:07]}  a5 {[%clk 0:00:05]} 48. Kd3 {[%clk 0:00:07]}  Kxh6 {[%clk 0:00:04]}
49. Nxf5+ {[%clk 0:00:09]}  Kh5 {[%clk 0:00:06]} 50. g3 {[%clk 0:00:08]}  Kg6 {[%clk 0:00:07]} 51. Ne3 {[%clk 0:00:09]}  h5 {[%clk 0:00:08]}
52. Kc4 {[%clk 0:00:09]}  Kf6 {[%clk 0:00:08]} 53. Kb5 {[%clk 0:00:02]} 1-0